[Event "Titled Tuesday Blitz March 28 Early 2023"]
[White "Staudenhocker43"]
[Black "Estremera Panos, Sergio"]
[BlackFideId "2200864"]
[WhiteElo "2540"]
[BlackElo "2253"]
[Result "1-0"]
[Round "06"]
[TimeControl "180+2"]
[Date "2023.03.28"]
[WhiteClock "0:02:13"]
[BlackClock "0:02:00"]

1. e4 {[%clk 0:03:00]}  c5 {[%clk 0:03:00]} 2. Nf3 {[%clk 0:03:00]}  Nc6 {[%clk 0:03:00]} 3. Bb5 {[%clk 0:02:59]}  Nf6 {[%clk 0:02:58]} 4. e5 {[%clk 0:02:57]}  Nd5 {[%clk 0:02:58]} 5. O-O {[%clk 0:02:56]}  Nc7 {[%clk 0:02:56]} 6. Bxc6 {[%clk 0:02:56]}  dxc6 {[%clk 0:02:54]} 7. h3 {[%clk 0:02:55]}  g6 {[%clk 0:02:54]} 8. Re1 {[%clk 0:02:55]}  Bg7 {[%clk 0:02:55]} 9. d3 {[%clk 0:02:55]}  Ne6 {[%clk 0:02:54]} 10. Be3 {[%clk 0:02:47]}  O-O {[%clk 0:02:54]} 11. Qd2 {[%clk 0:02:45]}  b6 {[%clk 0:02:54]} 12. Nc3 {[%clk 0:02:44]}  Qc7 {[%clk 0:02:52]} 13. Bh6 {[%clk 0:02:43]}  Rd8 {[%clk 0:02:50]} 14. Bxg7 {[%clk 0:02:42]}  Nxg7 {[%clk 0:02:51]} 15. Ne4 {[%clk 0:02:39]}  Bf5 {[%clk 0:02:50]} 16. b3 {[%clk 0:02:37]}  Bxe4 {[%clk 0:02:50]} 17. Rxe4 {[%clk 0:02:37]}  e6 {[%clk 0:02:50]} 18. Rae1 {[%clk 0:02:29]}  Rd5 {[%clk 0:02:50]} 19. g4 {[%clk 0:02:28]}  Rad8 {[%clk 0:02:50]} 20. Qh6 {[%clk 0:02:26]}  f5 {[%clk 0:02:15]} 21. exf6 {[%clk 0:02:22]}  Ne8 {[%clk 0:02:10]} 22. Rxe6 {[%clk 0:02:18]}  Nd6 {[%clk 0:02:00]} 23. Re7 {[%clk 0:02:13]} 1-0


[Site "https://www.chess.com"]

[Event "Titled Tuesday Blitz March 28 Early 2023"]
[White "Boraso, Alessio"]
[Black "Turzo, Attila"]
[WhiteFideId "848077"]
[BlackFideId "704954"]
[WhiteElo "2286"]
[BlackElo "2514"]
[Result "1-0"]
[Round "06"]
[TimeControl "180+2"]
[Date "2023.03.28"]
[WhiteClock "0:00:04"]
[BlackClock "0:00:01"]

1. e4 {[%clk 0:03:00]}  c5 {[%clk 0:02:59]} 2. c3 {[%clk 0:03:00]}  Nf6 {[%clk 0:02:56]} 3. e5 {[%clk 0:03:00]}  Nd5 {[%clk 0:02:56]} 4. Nf3 {[%clk 0:03:01]}  Nc6 {[%clk 0:02:55]} 5. d4 {[%clk 0:03:02]}  cxd4 {[%clk 0:02:55]} 6. cxd4 {[%clk 0:03:03]}  d6 {[%clk 0:02:55]} 7. Bc4 {[%clk 0:03:03]}  dxe5 {[%clk 0:02:54]} 8. dxe5 {[%clk 0:03:00]}  Ndb4 {[%clk 0:02:54]} 9. Na3 {[%clk 0:02:51]}  Qxd1+ {[%clk 0:02:53]} 10. Kxd1 {[%clk 0:02:52]}  Bg4 {[%clk 0:02:52]} 11. Bd2 {[%clk 0:02:09]}  e6 {[%clk 0:02:42]} 12. Bc3 {[%clk 0:01:50]}  O-O-O+ {[%clk 0:02:35]} 13. Ke2 {[%clk 0:01:49]}  Nd5 {[%clk 0:02:35]} 14. Bxd5 {[%clk 0:01:43]}  Rxd5 {[%clk 0:02:36]} 15. Nc4 {[%clk 0:01:35]}  Be7 {[%clk 0:02:01]} 16. Ne3 {[%clk 0:01:25]}  Bxf3+ {[%clk 0:01:59]} 17. gxf3 {[%clk 0:01:26]}  Nd4+ {[%clk 0:01:45]} 18. Bxd4 {[%clk 0:01:24]}  Rxd4 {[%clk 0:01:46]} 19. Rhd1 {[%clk 0:01:24]}  Rhd8 {[%clk 0:01:45]} 20. Rac1+ {[%clk 0:01:24]}  Kb8 {[%clk 0:01:44]} 21. Rxd4 {[%clk 0:01:21]}  Rxd4 {[%clk 0:01:44]} 22. Rc4 {[%clk 0:01:08]}  Rd7 {[%clk 0:01:26]} 23. Rc3 {[%clk 0:01:06]}  Bg5 {[%clk 0:01:22]} 24. Nc4 {[%clk 0:00:58]}  Bf4 {[%clk 0:01:13]} 25. Nd6 {[%clk 0:00:44]}  Rc7 {[%clk 0:01:12]} 26. Rxc7 {[%clk 0:00:39]}  Kxc7 {[%clk 0:01:12]} 27. Nxf7 {[%clk 0:00:12]}  Bxh2 {[%clk 0:01:11]} 28. Ke3 {[%clk 0:00:12]}  h6 {[%clk 0:01:06]} 29. f4 {[%clk 0:00:11]}  Kd7 {[%clk 0:01:05]} 30. Kf3 {[%clk 0:00:10]}  b6 {[%clk 0:00:57]} 31. Nh8 {[%clk 0:00:07]}  Kc6 {[%clk 0:00:44]} 32. Ng6 {[%clk 0:00:03]}  Kd5 {[%clk 0:00:41]} 33. Ke3 {[%clk 0:00:03]}  Bg1 {[%clk 0:00:38]} 34. Nh4 {[%clk 0:00:03]}  g5 {[%clk 0:00:35]} 35. Ng2 {[%clk 0:00:02]}  Bh2 {[%clk 0:00:28]} 36. fxg5 {[%clk 0:00:02]}  hxg5 {[%clk 0:00:28]} 37. Kd3 {[%clk 0:00:02]}  Bxe5 {[%clk 0:00:27]} 38. Ne3+ {[%clk 0:00:03]}  Kc5 {[%clk 0:00:26]} 39. b3 {[%clk 0:00:04]}  b5 {[%clk 0:00:22]} 40. Ng4 {[%clk 0:00:04]}  Bf4 {[%clk 0:00:20]} 41. f3 {[%clk 0:00:04]}  Kd5 {[%clk 0:00:20]} 42. Nf2 {[%clk 0:00:05]}  Bc1 {[%clk 0:00:18]} 43. Ne4 {[%clk 0:00:05]}  a5 {[%clk 0:00:16]} 44. Nc3+ {[%clk 0:00:05]}  Kc6 {[%clk 0:00:15]} 45. a4 {[%clk 0:00:06]}  bxa4 {[%clk 0:00:13]} 46. bxa4 {[%clk 0:00:06]}  Ba3 {[%clk 0:00:12]} 47. Ne4 {[%clk 0:00:06]}  Bc1 {[%clk 0:00:10]} 48. Kc4 {[%clk 0:00:06]}  Be3 {[%clk 0:00:10]} 49. Nc3 {[%clk 0:00:06]}  Kd6 {[%clk 0:00:08]} 50. Kd3 {[%clk 0:00:07]}  Bc1 {[%clk 0:00:07]} 51. Kc2 {[%clk 0:00:06]}  Bf4 {[%clk 0:00:05]} 52. Kd3 {[%clk 0:00:07]}  Kc5 {[%clk 0:00:04]} 53. Kc2 {[%clk 0:00:03]}  Kb4 {[%clk 0:00:04]} 54. Kd3 {[%clk 0:00:03]}  Be5 {[%clk 0:00:03]} 55. Ne4 {[%clk 0:00:03]}  Kxa4 {[%clk 0:00:03]} 56. Nc5+ {[%clk 0:00:03]}  Ka3 {[%clk 0:00:01]} 57. Nxe6 {[%clk 0:00:04]} 1-0


[Site "https://www.chess.com"]

[Event "Titled Tuesday Blitz March 28 Early 2023"]
[White "Manon-og, Ramon Jr."]
[Black "Lehtosaari, Mauri"]
[WhiteFideId "5200776"]
[BlackFideId "501999"]
[WhiteElo "2363"]
[BlackElo "2512"]
[Result "1-0"]
[Round "06"]
[TimeControl "180+2"]
[Date "2023.03.28"]
[WhiteClock "0:01:32"]
[BlackClock "0:01:41"]

1. e4 {[%clk 0:02:59]}  d5 {[%clk 0:02:58]} 2. exd5 {[%clk 0:02:59]}  Qxd5 {[%clk 0:02:57]} 3. Nc3 {[%clk 0:02:59]}  Qe5+ {[%clk 0:02:55]} 4. Be2 {[%clk 0:02:53]}  c6 {[%clk 0:02:55]} 5. Nf3 {[%clk 0:02:52]}  Qc7 {[%clk 0:02:55]} 6. O-O {[%clk 0:02:52]}  Bf5 {[%clk 0:02:55]} 7. d4 {[%clk 0:02:52]}  e6 {[%clk 0:02:55]} 8. Bg5 {[%clk 0:02:52]}  Be7 {[%clk 0:02:53]} 9. Qd2 {[%clk 0:02:51]}  Nf6 {[%clk 0:02:53]} 10. Ne5 {[%clk 0:02:48]}  Nbd7 {[%clk 0:02:52]} 11. f4 {[%clk 0:02:48]}  h6 {[%clk 0:02:49]} 12. Bh4 {[%clk 0:02:47]}  Nd5 {[%clk 0:02:40]} 13. Nxd5 {[%clk 0:02:46]}  cxd5 {[%clk 0:02:35]} 14. Bxe7 {[%clk 0:02:45]}  Kxe7 {[%clk 0:02:35]} 15. Qb4+ {[%clk 0:02:45]}  Ke8 {[%clk 0:02:33]} 16. Bb5 {[%clk 0:02:45]}  Rd8 {[%clk 0:02:28]} 17. Nxd7 {[%clk 0:02:31]}  Rxd7 {[%clk 0:02:27]} 18. Bxd7+ {[%clk 0:02:31]}  Qxd7 {[%clk 0:02:28]} 19. Rf3 {[%clk 0:02:10]}  f6 {[%clk 0:02:23]} 20. c4 {[%clk 0:02:06]}  Kf7 {[%clk 0:02:16]} 21. cxd5 {[%clk 0:02:06]}  Qxd5 {[%clk 0:02:14]} 22. Rc3 {[%clk 0:02:06]}  Kg6 {[%clk 0:02:10]} 23. Rac1 {[%clk 0:01:59]}  Rd8 {[%clk 0:02:08]} 24. Rg3+ {[%clk 0:01:52]}  Kh7 {[%clk 0:02:08]} 25. Rc7 {[%clk 0:01:52]}  Bg6 {[%clk 0:02:00]} 26. Rxb7 {[%clk 0:01:45]}  Qxa2 {[%clk 0:01:51]} 27. Rxg7+ {[%clk 0:01:32]}  Kxg7 {[%clk 0:01:41]} 28. Qe7+ {[%clk 0:01:32]} 1-0


[Site "https://www.chess.com"]

[Event "Titled Tuesday Blitz March 28 Early 2023"]
[White "Arencibia Monduy, Antonio"]
[Black "Gutkin, Ilya"]
[WhiteFideId "3507939"]
[BlackFideId "16203470"]
[WhiteElo "2506"]
[BlackElo "2265"]
[Result "1-0"]
[Round "06"]
[TimeControl "180+2"]
[Date "2023.03.28"]
[WhiteClock "0:00:35"]
[BlackClock "0:00:57"]

1. e4 {[%clk 0:03:00]}  e6 {[%clk 0:02:59]} 2. d4 {[%clk 0:03:00]}  d5 {[%clk 0:03:00]} 3. e5 {[%clk 0:02:59]}  c5 {[%clk 0:03:00]} 4. c3 {[%clk 0:03:00]}  Nc6 {[%clk 0:03:01]} 5. Nf3 {[%clk 0:02:59]}  Nh6 {[%clk 0:03:01]} 6. Bd3 {[%clk 0:02:45]}  cxd4 {[%clk 0:02:59]} 7. O-O {[%clk 0:02:45]}  Nf5 {[%clk 0:02:59]} 8. Bxf5 {[%clk 0:02:40]}  exf5 {[%clk 0:02:59]} 9. Nxd4 {[%clk 0:02:41]}  Be6 {[%clk 0:02:56]} 10. Re1 {[%clk 0:02:20]}  Be7 {[%clk 0:02:54]} 11. Nxe6 {[%clk 0:02:09]}  fxe6 {[%clk 0:02:54]} 12. Qh5+ {[%clk 0:02:09]}  Kf8 {[%clk 0:02:45]} 13. Nd2 {[%clk 0:02:06]}  Qe8 {[%clk 0:02:43]} 14. Qe2 {[%clk 0:02:03]}  g5 {[%clk 0:02:35]} 15. Nb3 {[%clk 0:01:52]}  Qg6 {[%clk 0:02:31]} 16. Be3 {[%clk 0:01:47]}  Kf7 {[%clk 0:02:21]} 17. Bc5 {[%clk 0:01:45]}  Rhc8 {[%clk 0:02:20]} 18. Bxe7 {[%clk 0:01:45]}  Nxe7 {[%clk 0:02:19]} 19. Rad1 {[%clk 0:01:44]}  Rc7 {[%clk 0:02:08]} 20. Nd4 {[%clk 0:01:35]}  a6 {[%clk 0:02:08]} 21. Rc1 {[%clk 0:01:26]}  Rac8 {[%clk 0:02:07]} 22. a4 {[%clk 0:01:06]}  Rc4 {[%clk 0:02:03]} 23. a5 {[%clk 0:01:02]}  Nc6 {[%clk 0:02:01]} 24. Nxc6 {[%clk 0:01:01]}  R8xc6 {[%clk 0:01:57]} 25. Qd3 {[%clk 0:01:01]}  f4 {[%clk 0:01:54]} 26. Qe2 {[%clk 0:00:52]}  g4 {[%clk 0:01:37]} 27. f3 {[%clk 0:00:51]}  g3 {[%clk 0:01:27]} 28. h3 {[%clk 0:00:50]}  R6c5 {[%clk 0:01:19]} 29. Qd2 {[%clk 0:00:41]}  Qf5 {[%clk 0:01:18]} 30. b3 {[%clk 0:00:38]}  Re4 {[%clk 0:01:01]} 31. fxe4 {[%clk 0:00:37]}  dxe4 {[%clk 0:01:02]} 32. Qd7+ {[%clk 0:00:36]}  Kg6 {[%clk 0:01:02]} 33. Qe8+ {[%clk 0:00:35]}  Kg7 {[%clk 0:00:56]} 34. Qe7+ {[%clk 0:00:34]}  Kg6 {[%clk 0:00:57]} 35. Qxc5 {[%clk 0:00:35]} 1-0


[Site "https://www.chess.com"]

[Event "Titled Tuesday Blitz March 28 Early 2023"]
[White "Lopez Del Alamo, Antonio"]
[Black "Mortazavi, Ali"]
[WhiteFideId "2227339"]
[BlackFideId "401323"]
[WhiteElo "2175"]
[BlackElo "2339"]
[Result "0-1"]
[Round "06"]
[TimeControl "180+2"]
[Date "2023.03.28"]
[WhiteClock "0:00:04"]
[BlackClock "0:00:12"]

1. e4 {[%clk 0:02:36]}  c6 {[%clk 0:02:59]} 2. d3 {[%clk 0:02:31]}  d5 {[%clk 0:02:57]} 3. Nd2 {[%clk 0:02:30]}  g6 {[%clk 0:02:57]} 4. Ngf3 {[%clk 0:02:30]}  Bg7 {[%clk 0:02:58]} 5. g3 {[%clk 0:02:31]}  e5 {[%clk 0:02:58]} 6. Bg2 {[%clk 0:02:31]}  Ne7 {[%clk 0:02:59]} 7. O-O {[%clk 0:02:31]}  O-O {[%clk 0:03:00]} 8. Re1 {[%clk 0:02:31]}  d4 {[%clk 0:03:00]} 9. Nc4 {[%clk 0:02:29]}  b5 {[%clk 0:03:00]} 10. Ncd2 {[%clk 0:02:19]}  Na6 {[%clk 0:02:36]} 11. a4 {[%clk 0:02:16]}  Nc5 {[%clk 0:02:35]} 12. axb5 {[%clk 0:02:05]}  cxb5 {[%clk 0:02:34]} 13. b4 {[%clk 0:02:02]}  Na4 {[%clk 0:02:34]} 14. Nb3 {[%clk 0:02:02]}  Nc6 {[%clk 0:02:14]} 15. Bd2 {[%clk 0:02:00]}  Qd6 {[%clk 0:02:10]} 16. Qb1 {[%clk 0:01:54]}  Bd7 {[%clk 0:01:30]} 17. Rc1 {[%clk 0:01:24]}  Rfc8 {[%clk 0:01:26]} 18. Nc5 {[%clk 0:01:01]}  Nxc5 {[%clk 0:01:23]} 19. bxc5 {[%clk 0:01:02]}  Qxc5 {[%clk 0:01:24]} 20. c3 {[%clk 0:00:58]}  dxc3 {[%clk 0:01:13]} 21. Bxc3 {[%clk 0:00:56]}  Qb6 {[%clk 0:01:11]} 22. Qb2 {[%clk 0:00:49]}  b4 {[%clk 0:00:56]} 23. Bxe5 {[%clk 0:00:40]}  Nxe5 {[%clk 0:00:56]} 24. Nxe5 {[%clk 0:00:41]}  Be6 {[%clk 0:00:45]} 25. d4 {[%clk 0:00:37]}  Bxe5 {[%clk 0:00:40]} 26. dxe5 {[%clk 0:00:37]}  a5 {[%clk 0:00:41]} 27. Bf1 {[%clk 0:00:29]}  b3 {[%clk 0:00:37]} 28. Ra3 {[%clk 0:00:19]}  a4 {[%clk 0:00:37]} 29. Rxc8+ {[%clk 0:00:11]}  Rxc8 {[%clk 0:00:36]} 30. Rxa4 {[%clk 0:00:10]}  Rc2 {[%clk 0:00:35]} 31. Qd4 {[%clk 0:00:11]}  Qxd4 {[%clk 0:00:32]} 32. Rxd4 {[%clk 0:00:11]}  b2 {[%clk 0:00:32]} 33. Rb4 {[%clk 0:00:11]}  Ba2 {[%clk 0:00:32]} 34. Bd3 {[%clk 0:00:10]}  Rc1+ {[%clk 0:00:32]} 35. Kg2 {[%clk 0:00:11]}  b1=Q {[%clk 0:00:30]} 36. Bxb1 {[%clk 0:00:11]}  Bxb1 {[%clk 0:00:31]} 37. f4 {[%clk 0:00:10]}  Kg7 {[%clk 0:00:21]} 38. h3 {[%clk 0:00:10]}  h5 {[%clk 0:00:20]} 39. g4 {[%clk 0:00:10]}  h4 {[%clk 0:00:21]} 40. f5 {[%clk 0:00:07]}  Ba2 {[%clk 0:00:16]} 41. Rb7 {[%clk 0:00:06]}  Rc2+ {[%clk 0:00:14]} 42. Kg1 {[%clk 0:00:06]}  Re2 {[%clk 0:00:11]} 43. e6 {[%clk 0:00:07]}  Rxe4 {[%clk 0:00:10]} 44. Rxf7+ {[%clk 0:00:07]}  Kh6 {[%clk 0:00:10]} 45. Rf6 {[%clk 0:00:07]}  Kg5 {[%clk 0:00:10]} 46. Rxg6+ {[%clk 0:00:07]}  Kf4 {[%clk 0:00:11]} 47. Rg7 {[%clk 0:00:04]}  Kg3 {[%clk 0:00:11]} 48. Kf1 {[%clk 0:00:04]}  Bc4+ {[%clk 0:00:11]} 49. Kg1 {[%clk 0:00:04]}  Re1# {[%clk 0:00:12]} 0-1


[Site "https://www.chess.com"]

[Event "Titled Tuesday Blitz March 28 Early 2023"]
[White "Mrudul Dehankar"]
[Black "Jumanov, Elbek"]
[WhiteFideId "25096990"]
[BlackFideId "14202905"]
[WhiteElo "2139"]
[BlackElo "2055"]
[Result "0-1"]
[Round "06"]
[TimeControl "180+2"]
[Date "2023.03.28"]
[WhiteClock "0:00:02"]
[BlackClock "0:00:31"]

1. e4 {[%clk 0:02:56]}  c5 {[%clk 0:02:55]} 2. Nf3 {[%clk 0:02:55]}  e6 {[%clk 0:02:55]} 3. d4 {[%clk 0:02:45]}  cxd4 {[%clk 0:02:56]} 4. Nxd4 {[%clk 0:02:46]}  Nf6 {[%clk 0:02:57]} 5. Bd3 {[%clk 0:02:42]}  Nc6 {[%clk 0:02:56]} 6. Nxc6 {[%clk 0:02:41]}  bxc6 {[%clk 0:02:57]} 7. O-O {[%clk 0:02:38]}  d6 {[%clk 0:02:57]} 8. Qe2 {[%clk 0:02:24]}  Qc7 {[%clk 0:02:57]} 9. c4 {[%clk 0:02:20]}  Be7 {[%clk 0:02:56]} 10. Nc3 {[%clk 0:02:19]}  O-O {[%clk 0:02:55]} 11. f4 {[%clk 0:02:14]}  a5 {[%clk 0:02:45]} 12. Be3 {[%clk 0:02:10]}  e5 {[%clk 0:02:43]} 13. f5 {[%clk 0:02:08]}  Ba6 {[%clk 0:02:22]} 14. b3 {[%clk 0:02:00]}  Rfd8 {[%clk 0:02:08]} 15. Rac1 {[%clk 0:01:56]}  Qb7 {[%clk 0:02:05]} 16. g4 {[%clk 0:01:44]}  d5 {[%clk 0:02:04]} 17. g5 {[%clk 0:01:42]}  d4 {[%clk 0:01:25]} 18. gxf6 {[%clk 0:01:32]}  Bxf6 {[%clk 0:01:25]} 19. Bd2 {[%clk 0:01:21]}  dxc3 {[%clk 0:01:23]} 20. Bxc3 {[%clk 0:01:16]}  a4 {[%clk 0:01:22]} 21. Bc2 {[%clk 0:01:13]}  axb3 {[%clk 0:01:21]} 22. axb3 {[%clk 0:01:08]}  Qb6+ {[%clk 0:01:20]} 23. Kh1 {[%clk 0:01:08]}  Bb7 {[%clk 0:01:19]} 24. Ra1 {[%clk 0:01:03]}  c5 {[%clk 0:01:17]} 25. Rfd1 {[%clk 0:00:51]}  Qc6 {[%clk 0:01:05]} 26. Rd5 {[%clk 0:00:38]}  Rxa1+ {[%clk 0:00:58]} 27. Bxa1 {[%clk 0:00:35]}  Ra8 {[%clk 0:00:59]} 28. Bxe5 {[%clk 0:00:12]}  Bxe5 {[%clk 0:00:52]} 29. Rxe5 {[%clk 0:00:10]}  Qf6 {[%clk 0:00:53]} 30. Rxc5 {[%clk 0:00:10]}  Ra1+ {[%clk 0:00:47]} 31. Kg2 {[%clk 0:00:10]}  Qg5+ {[%clk 0:00:47]} 32. Kh3 {[%clk 0:00:10]}  Rg1 {[%clk 0:00:43]} 33. f6 {[%clk 0:00:07]}  Qxf6 {[%clk 0:00:35]} 34. Rh5 {[%clk 0:00:02]}  g6 {[%clk 0:00:31]} 35. Rh4 {[%clk 0:00:02]}  Bc8+ {[%clk 0:00:31]} 0-1


[Site "https://www.chess.com"]

[Event "Titled Tuesday Blitz March 28 Early 2023"]
[White "Tanmay Jain"]
[Black "Mika, Tomasz"]
[WhiteFideId "45015481"]
[BlackFideId "1132970"]
[WhiteElo "2032"]
[BlackElo "2179"]
[Result "0-1"]
[Round "06"]
[TimeControl "180+2"]
[Date "2023.03.28"]
[WhiteClock "0:00:12"]
[BlackClock "0:00:06"]

1. e4 {[%clk 0:03:00]}  d6 {[%clk 0:02:58]} 2. g3 {[%clk 0:02:56]}  g6 {[%clk 0:02:57]} 3. Bg2 {[%clk 0:02:56]}  Bg7 {[%clk 0:02:57]} 4. Ne2 {[%clk 0:02:56]}  Nf6 {[%clk 0:02:55]} 5. Kf1 {[%clk 0:02:53]}  c5 {[%clk 0:02:54]} 6. f3 {[%clk 0:02:50]}  O-O {[%clk 0:02:50]} 7. Kf2 {[%clk 0:02:50]}  Nc6 {[%clk 0:02:50]} 8. Re1 {[%clk 0:02:49]}  d5 {[%clk 0:02:49]} 9. d3 {[%clk 0:02:47]}  dxe4 {[%clk 0:02:45]} 10. dxe4 {[%clk 0:02:48]}  Qc7 {[%clk 0:02:42]} 11. Be3 {[%clk 0:02:48]}  Rd8 {[%clk 0:02:41]} 12. Qc1 {[%clk 0:02:48]}  b6 {[%clk 0:02:41]} 13. Kg1 {[%clk 0:02:43]}  Na5 {[%clk 0:02:39]} 14. Nd2 {[%clk 0:02:43]}  Ba6 {[%clk 0:02:38]} 15. Nc3 {[%clk 0:02:34]}  Rd7 {[%clk 0:02:30]} 16. f4 {[%clk 0:02:34]}  Ng4 {[%clk 0:02:27]} 17. Nd5 {[%clk 0:02:02]}  Qd8 {[%clk 0:02:26]} 18. Nf1 {[%clk 0:01:46]}  e6 {[%clk 0:02:20]} 19. Nc3 {[%clk 0:01:46]}  Nc4 {[%clk 0:02:13]} 20. Kh1 {[%clk 0:01:30]}  Ngxe3 {[%clk 0:01:39]} 21. Nxe3 {[%clk 0:01:30]}  Nxe3 {[%clk 0:01:36]} 22. Qxe3 {[%clk 0:01:29]}  Bb7 {[%clk 0:01:29]} 23. Rad1 {[%clk 0:01:14]}  Bd4 {[%clk 0:01:28]} 24. Qe2 {[%clk 0:01:07]}  Qe7 {[%clk 0:01:10]} 25. e5 {[%clk 0:00:43]}  Bxg2+ {[%clk 0:01:09]} 26. Kxg2 {[%clk 0:00:43]}  Bxc3 {[%clk 0:01:08]} 27. bxc3 {[%clk 0:00:42]}  Rad8 {[%clk 0:01:08]} 28. Qf3 {[%clk 0:00:33]}  Rd2+ {[%clk 0:01:05]} 29. Kg1 {[%clk 0:00:28]}  Qd7 {[%clk 0:01:00]} 30. Rxd2 {[%clk 0:00:26]}  Qxd2 {[%clk 0:00:59]} 31. Re2 {[%clk 0:00:26]}  Qd1+ {[%clk 0:00:54]} 32. Kg2 {[%clk 0:00:27]}  Rd2 {[%clk 0:00:39]} 33. Rxd2 {[%clk 0:00:27]}  Qxd2+ {[%clk 0:00:39]} 34. Kh3 {[%clk 0:00:26]}  Kg7 {[%clk 0:00:22]} 35. Qb7 {[%clk 0:00:24]}  Qxc2 {[%clk 0:00:18]} 36. Qxa7 {[%clk 0:00:24]}  Qxc3 {[%clk 0:00:13]} 37. Qxb6 {[%clk 0:00:24]}  c4 {[%clk 0:00:09]} 38. Qd8 {[%clk 0:00:21]}  Qd3 {[%clk 0:00:08]} 39. Qf6+ {[%clk 0:00:11]}  Kg8 {[%clk 0:00:08]} 40. Kh4 {[%clk 0:00:12]}  c3 {[%clk 0:00:06]} 41. Kg5 {[%clk 0:00:12]}  Qf5+ {[%clk 0:00:06]} 0-1


[Site "https://www.chess.com"]

[Event "Titled Tuesday Blitz March 28 Early 2023"]
[White "Garv Gaur"]
[Black "Wilson, Elvin"]
[WhiteFideId "45030839"]
[BlackFideId "2014874"]
[WhiteElo "2068"]
[BlackElo "2297"]
[Result "1-0"]
[Round "06"]
[TimeControl "180+2"]
[Date "2023.03.28"]
[WhiteClock "0:00:05"]
[BlackClock "0:00:04"]

1. e4 {[%clk 0:03:00]}  e6 {[%clk 0:02:56]} 2. d4 {[%clk 0:03:00]}  d5 {[%clk 0:02:56]} 3. Bd3 {[%clk 0:03:00]}  dxe4 {[%clk 0:02:51]} 4. Bxe4 {[%clk 0:03:01]}  Nf6 {[%clk 0:02:49]} 5. Bf3 {[%clk 0:03:01]}  Nbd7 {[%clk 0:02:48]} 6. Ne2 {[%clk 0:02:52]}  Bd6 {[%clk 0:02:48]} 7. O-O {[%clk 0:02:51]}  e5 {[%clk 0:02:47]} 8. Ng3 {[%clk 0:02:34]}  O-O {[%clk 0:02:39]} 9. Nf5 {[%clk 0:02:12]}  e4 {[%clk 0:02:28]} 10. Be2 {[%clk 0:02:09]}  Nb6 {[%clk 0:02:23]} 11. Nxd6 {[%clk 0:02:09]}  Qxd6 {[%clk 0:02:21]} 12. c4 {[%clk 0:02:07]}  c5 {[%clk 0:02:01]} 13. Be3 {[%clk 0:02:06]}  cxd4 {[%clk 0:01:57]} 14. Bxd4 {[%clk 0:02:06]}  Rd8 {[%clk 0:01:43]} 15. Bxf6 {[%clk 0:01:48]}  Qxf6 {[%clk 0:01:43]} 16. Qc1 {[%clk 0:01:47]}  Na4 {[%clk 0:01:31]} 17. Nd2 {[%clk 0:01:22]}  Qxb2 {[%clk 0:01:30]} 18. Qxb2 {[%clk 0:01:14]}  Nxb2 {[%clk 0:01:30]} 19. Nxe4 {[%clk 0:01:15]}  Bf5 {[%clk 0:01:29]} 20. Ng3 {[%clk 0:01:01]}  Bg6 {[%clk 0:01:28]} 21. Rac1 {[%clk 0:00:52]}  Rac8 {[%clk 0:01:22]} 22. c5 {[%clk 0:00:50]}  Kf8 {[%clk 0:01:02]} 23. Bf3 {[%clk 0:00:50]}  Rc7 {[%clk 0:01:00]} 24. Ne2 {[%clk 0:00:41]}  Nd3 {[%clk 0:00:52]} 25. Rc3 {[%clk 0:00:40]}  Nxc5 {[%clk 0:00:46]} 26. Nf4 {[%clk 0:00:38]}  b6 {[%clk 0:00:42]} 27. Nd5 {[%clk 0:00:26]}  Rcd7 {[%clk 0:00:41]} 28. Nb4 {[%clk 0:00:26]}  Be4 {[%clk 0:00:38]} 29. Be2 {[%clk 0:00:24]}  Na4 {[%clk 0:00:35]} 30. Re3 {[%clk 0:00:24]}  Ba8 {[%clk 0:00:33]} 31. Bb5 {[%clk 0:00:23]}  Rd4 {[%clk 0:00:28]} 32. Rfe1 {[%clk 0:00:23]}  g6 {[%clk 0:00:26]} 33. a3 {[%clk 0:00:20]}  Nc5 {[%clk 0:00:23]} 34. Bc6 {[%clk 0:00:21]}  Rd1 {[%clk 0:00:19]} 35. Bxa8 {[%clk 0:00:17]}  Rxe1+ {[%clk 0:00:18]} 36. Rxe1 {[%clk 0:00:17]}  Rxa8 {[%clk 0:00:18]} 37. Rd1 {[%clk 0:00:18]}  a5 {[%clk 0:00:15]} 38. Nc6 {[%clk 0:00:16]}  Rc8 {[%clk 0:00:14]} 39. Na7 {[%clk 0:00:16]}  Rc7 {[%clk 0:00:13]} 40. Nb5 {[%clk 0:00:16]}  Rd7 {[%clk 0:00:13]} 41. Re1 {[%clk 0:00:15]}  Rd3 {[%clk 0:00:12]} 42. f3 {[%clk 0:00:15]}  Rb3 {[%clk 0:00:12]} 43. Nd6 {[%clk 0:00:14]}  Rxa3 {[%clk 0:00:11]} 44. Re8+ {[%clk 0:00:15]}  Kg7 {[%clk 0:00:11]} 45. Re7 {[%clk 0:00:16]}  Kf6 {[%clk 0:00:09]} 46. Rc7 {[%clk 0:00:13]}  Ke6 {[%clk 0:00:08]} 47. Nxf7 {[%clk 0:00:13]}  Ra1+ {[%clk 0:00:08]} 48. Kf2 {[%clk 0:00:13]}  a4 {[%clk 0:00:08]} 49. Ng5+ {[%clk 0:00:13]}  Kd6 {[%clk 0:00:08]} 50. Ra7 {[%clk 0:00:14]}  h6 {[%clk 0:00:07]} 51. Nf7+ {[%clk 0:00:14]}  Kc6 {[%clk 0:00:07]} 52. Nd8+ {[%clk 0:00:14]}  Kb5 {[%clk 0:00:07]} 53. f4 {[%clk 0:00:10]}  a3 {[%clk 0:00:07]} 54. Nf7 {[%clk 0:00:09]}  a2 {[%clk 0:00:07]} 55. Ne5 {[%clk 0:00:08]}  Na6 {[%clk 0:00:07]} 56. Nf3 {[%clk 0:00:04]}  Rb1 {[%clk 0:00:06]} 57. Nd4+ {[%clk 0:00:05]}  Ka5 {[%clk 0:00:04]} 58. Nc6+ {[%clk 0:00:05]}  Kb5 {[%clk 0:00:04]} 59. Nd4+ {[%clk 0:00:05]} 1-0


[Site "https://www.chess.com"]

[Event "Titled Tuesday Blitz March 28 Early 2023"]
[White "Lukas2010"]
[Black "Levitan, Caleb Levi"]
[BlackFideId "14332620"]
[WhiteElo "2490"]
[BlackElo "1963"]
[Result "1-0"]
[Round "06"]
[TimeControl "180+2"]
[Date "2023.03.28"]
[WhiteClock "0:01:14"]
[BlackClock "0:00:02"]

1. e4 {[%clk 0:03:00]}  e5 {[%clk 0:02:58]} 2. Nf3 {[%clk 0:03:00]}  Nc6 {[%clk 0:02:58]} 3. Bb5 {[%clk 0:03:01]}  a6 {[%clk 0:02:55]} 4. Ba4 {[%clk 0:03:01]}  Nf6 {[%clk 0:02:55]} 5. O-O {[%clk 0:03:00]}  Bc5 {[%clk 0:02:56]} 6. d3 {[%clk 0:02:57]}  b5 {[%clk 0:02:54]} 7. Bb3 {[%clk 0:02:57]}  d6 {[%clk 0:02:52]} 8. h3 {[%clk 0:02:56]}  h6 {[%clk 0:02:48]} 9. a4 {[%clk 0:02:56]}  Bb7 {[%clk 0:02:46]} 10. c3 {[%clk 0:02:56]}  O-O {[%clk 0:02:43]} 11. Re1 {[%clk 0:02:48]}  Bb6 {[%clk 0:02:24]} 12. Nbd2 {[%clk 0:02:44]}  Ne7 {[%clk 0:02:21]} 13. Nf1 {[%clk 0:02:40]}  Ng6 {[%clk 0:02:21]} 14. Ng3 {[%clk 0:02:37]}  Re8 {[%clk 0:02:05]} 15. Nf5 {[%clk 0:02:35]}  d5 {[%clk 0:02:05]} 16. Qc2 {[%clk 0:02:27]}  Qd7 {[%clk 0:01:49]} 17. Bd2 {[%clk 0:01:50]}  dxe4 {[%clk 0:01:21]} 18. dxe4 {[%clk 0:01:50]}  Bxe4 {[%clk 0:01:19]} 19. Nxh6+ {[%clk 0:01:37]}  gxh6 {[%clk 0:01:17]} 20. Rxe4 {[%clk 0:01:38]}  Nxe4 {[%clk 0:01:14]} 21. Qxe4 {[%clk 0:01:39]}  Qd6 {[%clk 0:00:59]} 22. Bxh6 {[%clk 0:01:28]}  Qf6 {[%clk 0:00:29]} 23. Ng5 {[%clk 0:01:20]}  Qxf2+ {[%clk 0:00:13]} 24. Kh1 {[%clk 0:01:18]}  Qf6 {[%clk 0:00:03]} 25. Bxf7+ {[%clk 0:01:16]}  Kh8 {[%clk 0:00:03]} 26. Bxg6 {[%clk 0:01:14]}  Rg8 {[%clk 0:00:02]} 27. Nf7+ {[%clk 0:01:13]}  Qxf7 {[%clk 0:00:02]} 28. Bxf7 {[%clk 0:01:14]} 1-0


[Site "https://www.chess.com"]